bitfinex/quotes_SOLUSD_20260308
["timestamp","ask_amount","ask_price","bid_price","bid_amount"]
[1772975581440,0.28432314,81.853,81.771,30.5729445]
[1772975581645,0.28432314,81.863,81.775,0.28432314]
[1772975583165,0.50314431,81.889,81.786,0.50517743]
[1772975583454,0.50314431,81.886,81.789,0.50517743]
[1772975583669,0.78746745,81.886,81.789,0.50517743]
[1772975583837,0.50314431,81.885,81.789,0.50517743]
[1772975584240,3.69383402,81.893,81.802,3.69383402]
[1772975584476,12.77005382,81.896,81.804,0.51171156]
[1772975584781,3.69383402,81.893,81.804,0.51171156]
[1772975585373,12.77005382,81.896,81.81,0.51171156]
[1772975585666,0.55944525,81.902,81.81,0.51171156]
[1772975586652,0.55944525,81.897,81.795,1.73428017]
[1772975586840,3.69383402,81.899,81.7,145.45336201]
[1772975586841,3.69383402,81.875,81.784,0.51171156]
[1772975587041,0.55944525,81.869,81.784,0.51171156]
[1772975587246,0.14216157,81.877,81.768,3.69383402]
[1772975587247,0.55944525,81.857,81.786,0.51171156]
[1772975588254,0.55944525,81.848,81.786,0.51171156]
[1772975588461,0.55944525,81.847,81.786,0.51171156]
[1772975589369,0.55944525,81.847,81.785,12.22718102]
[1772975589370,0.55944525,81.842,81.788,0.51171156]
[1772975589743,0.28432314,81.845,81.788,0.51171156]
[1772975590165,0.55944525,81.845,81.789,0.51171156]
[1772975590546,0.55944525,81.863,81.789,0.51171156]
[1772975590744,0.55944525,81.866,81.789,0.51171156]
[1772975590941,0.55944525,81.865,81.789,0.51171156]
[1772975591345,0.28432314,81.863,81.794,0.51171156]
[1772975591564,12.2153816,81.864,81.795,0.51171156]
[1772975591766,0.28432314,81.863,81.795,0.51171156]
[1772975591972,3.49,83.094,81.794,0.28432314]
[1772975591973,29.51774601,81.887,81.803,3.69383402]
[1772975592269,29.51774601,81.887,81.814,0.51171156]
[1772975593368,0.55944525,81.886,81.82,0.51171156]
[1772975594463,29.51774601,81.887,81.82,0.51171156]
[1772975595451,0.55944525,81.882,81.822,0.51171156]
[1772975595874,12.21209974,81.886,81.823,0.51171156]
[1772975596080,29.51774601,81.887,81.826,0.51171156]
[1772975596251,12.21209974,81.886,81.826,0.51171156]
[1772975596451,29.51774601,81.887,81.826,0.51171156]
[1772975597549,29.51774601,81.887,81.831,0.51171156]
[1772975597746,29.51774601,81.887,81.832,0.51171156]
[1772975597952,29.27468387,81.887,81.832,0.51171156]
[1772975598369,12.21209974,81.886,81.832,0.51171156]
[1772975598569,0.55944525,81.885,81.832,0.51171156]
[1772975598956,0.55944525,81.884,81.832,0.51171156]
[1772975600575,0.55944525,81.882,81.834,0.51171156]
[1772975603055,0.55944525,81.88,81.836,0.51171156]
[1772975605550,0.55944525,81.878,81.81,0.51171156]
[1772975605767,0.55944525,81.875,81.81,0.51171156]
[1772975605971,0.55944525,81.873,81.81,0.51171156]
[1772975606475,0.55944525,81.871,81.8,0.51171156]
[1772975606858,0.55944525,81.869,81.8,0.51171156]
[1772975607173,0.55944525,81.868,81.8,0.51171156]
[1772975607574,0.55944525,81.866,81.802,0.51171156]
[1772975608379,0.55944525,81.865,81.802,0.51171156]
[1772975608964,0.55944525,81.865,81.801,42.78676299]
[1772975609480,0.55944525,81.865,81.802,0.51171156]
[1772975610061,0.55944525,81.86,81.793,0.51171156]
[1772975610256,0.55944525,81.859,81.799,12.22508832]
[1772975610670,0.55944525,81.859,81.8,0.51171156]
[1772975611471,0.55944525,81.859,81.776,0.51171156]
[1772975611679,0.55944525,81.853,81.776,0.51171156]
[1772975612073,42.76010359,81.852,81.777,12.22837717]
[1772975612373,0.55944525,81.847,81.778,0.51171156]
[1772975614271,0.59962531,81.844,81.78,0.60781955]
[1772975614781,12.21746953,81.851,81.781,0.60781955]
[1772975614981,0.59962531,81.85,81.781,0.60781955]
[1772975615375,12.21648215,81.857,81.781,0.60781955]
[1772975615686,0.59962531,81.856,81.781,0.60781955]
[1772975615874,0.59962531,81.855,81.781,0.60781955]
[1772975616385,0.59962531,81.853,81.784,0.60781955]
[1772975618379,0.59962531,81.853,81.787,0.60781955]
[1772975618773,0.59962531,81.861,81.79,0.60781955]
[1772975619169,12.8148005,81.866,81.79,0.60781955]
[1772975619382,0.59962531,81.865,81.79,0.60781955]
[1772975620299,3.69383402,81.861,81.792,0.60781955]
[1772975620487,0.59962531,81.86,81.792,0.60781955]
[1772975620694,0.59962531,81.859,81.792,0.60781955]
[1772975620896,0.59962531,81.859,81.793,0.60781955]
[1772975623996,0.59962531,81.857,81.796,0.60781955]
[1772975626003,12.21657544,81.856,81.797,103.91579151]
[1772975626184,0.59962531,81.866,81.799,0.60781955]
[1772975626904,0.59962531,81.862,81.799,0.60781955]
[1772975627293,0.59962531,81.857,81.788,12.22673252]
[1772975627490,0.59962531,81.857,81.789,0.60781955]
[1772975627491,0.59962531,81.856,81.789,0.60781955]
[1772975628092,0.59962531,81.851,81.791,0.60781955]
[1772975628284,0.59962531,81.85,81.791,0.60781955]
[1772975630108,12.21762025,81.849,81.794,0.60781955]
[1772975631905,0.59962531,81.848,81.794,0.60781955]
[1772975632790,0.59962531,81.848,81.793,0.28432314]
[1772975632791,0.59962531,81.856,81.797,0.60781955]
[1772975634910,0.59962531,81.853,81.798,12.22523778]
[1772975635201,0.59962531,81.853,81.775,0.60781955]
[1772975637207,0.59962531,81.85,81.777,0.60781955]
[1772975638304,0.59962531,81.85,81.778,0.60781955]
[1772975639392,0.28432314,81.867,81.776,103.94247699]
[1772975639393,0.59962531,81.848,81.78,0.60781955]
[1772975639592,0.59962531,81.848,81.781,0.60781955]
[1772975640510,18.94914148,81.883,81.788,0.60781955]
[1772975640511,0.59962531,81.857,81.788,0.60781955]
[1772975640805,0.59962531,81.874,81.79,0.60781955]
[1772975641587,42.7444371,81.882,81.757,4.82477569]
[1772975641588,0.59962531,81.871,81.795,0.60781955]
[1772975641796,0.59962531,81.868,81.795,0.60781955]
[1772975643425,0.28432314,81.869,81.795,0.60781955]
[1772975643426,3.69383402,81.864,81.795,0.60781955]
[1772975643715,0.67757928,81.857,81.796,12.2255367]
[1772975644509,0.28432314,81.855,81.791,31.2781137]
[1772975644718,0.72410112,81.854,81.792,0.71240354]
[1772975646099,0.60199112,81.854,81.792,0.71240354]
[1772975646703,0.28432314,81.852,81.793,12.93838864]
[1772975646918,0.28432314,81.852,81.794,0.71240354]
[1772975648013,0.72410112,81.851,81.794,0.71240354]
[1772975649221,0.72410112,81.848,81.796,0.71240354]
[1772975651315,0.72410112,81.853,81.798,0.71240354]
[1772975654328,0.72410112,81.853,81.8,0.71240354]
[1772975654623,0.72410112,81.861,81.8,0.71240354]
[1772975655217,0.72410112,81.861,81.801,0.71240354]
[1772975655524,61.05750029,81.891,81.801,0.71240354]
[1772975655525,0.72410112,81.869,81.801,0.71240354]
[1772975656407,30.5308015,81.885,81.8,0.28432314]
[1772975656408,12.21329294,81.878,81.804,0.71240354]
[1772975656629,0.72410112,81.877,81.804,0.71240354]
[1772975656999,0.72410112,81.877,81.807,0.71240354]
[1772975659026,0.72410112,81.875,81.81,0.71240354]
[1772975663828,0.72410112,81.873,81.812,0.71240354]
[1772975665842,0.72410112,81.871,81.814,0.71240354]
[1772975666046,0.72410112,81.87,81.814,0.71240354]
[1772975668141,0.72410112,81.868,81.816,0.71240354]
[1772975670342,12.21493397,81.867,81.817,42.77839567]
[1772975670527,12.21493397,81.867,81.818,0.71240354]
[1772975671036,30.52980616,81.888,81.818,0.71240354]
[1772975671341,0.72410112,81.877,81.818,0.71240354]
[1772975672443,0.72410112,81.875,81.82,0.71240354]
[1772975672629,0.72410112,81.875,81.82,0.28432314]
[1772975672824,0.72410112,81.875,81.821,0.72989265]
[1772975673233,12.21272545,81.882,81.821,0.72989265]
[1772975673437,12.94598522,81.882,81.821,0.72989265]
[1772975673829,27.08154798,81.879,81.821,0.72989265]
[1772975674445,27.81480775,81.879,81.821,0.72989265]
[1772975674824,0.73325977,81.879,81.824,0.72989265]
[1772975675345,0.73325977,81.877,81.824,0.72989265]
[1772975675843,0.73325977,81.884,81.824,0.72989265]
[1772975676046,12.94580694,81.883,81.824,0.72989265]
[1772975676447,0.73325977,81.882,81.824,0.72989265]
[1772975677350,0.73325977,81.88,81.827,0.72989265]
[1772975679335,0.73325977,81.878,81.829,0.72989265]
[1772975681062,0.73325977,81.878,81.831,0.72989265]
[1772975681851,12.21257213,81.883,81.831,0.72989265]
[1772975682033,12.9458319,81.883,81.831,0.72989265]
[1772975682436,0.73325977,81.882,81.833,0.72989265]
[1772975684648,0.73325977,81.88,81.835,0.72989265]
[1772975685150,0.73325977,81.877,81.815,12.22269754]
[1772975686140,0.73325977,81.877,81.815,43.50933406]
[1772975686340,0.73325977,81.877,81.816,0.72989265]
[1772975686958,0.73325977,81.874,81.818,0.72989265]
[1772975688156,0.73325977,81.871,81.813,12.22290488]
[1772975688343,0.73325977,81.867,81.799,12.22508832]
[1772975688658,0.73325977,81.853,81.788,12.22673252]
[1772975688860,0.73325977,81.853,81.788,42.79356383]
[1772975689172,0.73325977,81.847,81.788,42.79356383]
[1772975690157,0.73325977,81.847,81.759,74.57959136]
[1772975690362,3.69383402,81.843,81.701,9.17756431]
[1772975690547,8.51860971,81.842,81.728,1e-08]
[1772975690738,8.51860971,81.842,81.706,0.78849865]
[1772975690739,8.51860971,81.834,81.702,0.78849865]
[1772975690940,0.28432314,81.824,81.702,0.78849865]
[1772975691144,0.28432314,81.824,81.69,0.1]
[1772975691457,238.3018245,81.829,81.688,1e-08]
[1772975691458,0.28432314,81.818,81.688,1e-08]
[1772975691965,0.28432314,81.812,81.688,1e-08]
[1772975692255,372.72849474,81.829,81.688,1e-08]
[1772975692256,0.28432314,81.806,81.688,1e-08]
[1772975692456,0.28432314,81.8,81.688,1e-08]
[1772975692662,0.28432314,81.794,81.688,1e-08]
[1772975692843,8.51860971,81.789,81.688,1e-08]
[1772975693048,0.28432314,81.783,81.688,1e-08]
[1772975693353,8.66077128,81.779,81.688,1e-08]
[1772975693662,0.14216157,81.773,81.688,1e-08]
[1772975693956,0.14216157,81.767,81.688,1e-08]
[1772975694264,4.82477569,81.759,81.688,1e-08]
[1772975694442,0.14216157,81.753,81.661,0.78849865]
[1772975694764,8.66077128,81.749,81.66,0.78849865]
[1772975694938,4.96693726,81.739,81.66,0.78849865]
[1772975695141,0.28432314,81.734,81.66,0.78849865]
[1772975695371,0.28432314,81.728,81.66,0.78849865]
[1772975695541,3.69383402,81.723,81.661,12.24574766]
[1772975695741,0.28432314,81.717,81.661,13.03424631]
[1772975696159,0.28432314,81.715,81.661,13.03424631]
[1772975696435,0.28432314,81.715,81.661,0.78849865]
[1772975696839,0.28432314,81.712,81.661,0.78849865]
[1772975697051,0.28432314,81.71,81.661,0.78849865]
[1772975697354,0.28432314,81.71,81.662,12.2455977]
[1772975697564,0.28432314,81.71,81.663,0.78849865]
[1772975697954,14.03066577,81.717,81.663,0.78849865]
[1772975698157,12.2375055,81.716,81.663,0.78849865]
[1772975699043,14.03066577,81.717,81.665,0.78849865]
[1772975700352,0.34722687,81.758,81.668,0.72989265]
[1772975700560,0.34722687,81.758,81.669,0.72989265]
[1772975701053,0.34722687,81.758,81.615,49.01008799]
[1772975701054,3.69383402,81.75,81.671,0.72989265]
[1772975701246,0.34722687,81.742,81.671,0.72989265]
[1772975701665,0.34983887,81.74,81.671,0.72989265]
[1772975703372,0.28432314,81.738,81.673,0.76681849]
[1772975703555,0.3574904,81.737,81.673,0.76681849]
[1772975704260,0.3574904,81.737,81.642,3.69383402]
[1772975704261,0.35998914,81.72,81.667,0.73351219]
[1772975704453,0.36246369,81.719,81.667,0.73351219]
[1772975704656,0.36246369,81.742,81.669,3.69383402]
[1772975704855,48.88682233,81.822,81.671,0.73351219]
[1772975704856,0.36246369,81.752,81.671,0.73351219]
[1772975705162,0.36246369,81.743,81.671,0.73351219]
[1772975705465,0.28432314,81.728,81.673,0.73351219]
[1772975705669,0.36492317,81.727,81.673,0.73351219]
[1772975706655,0.28432314,81.728,81.673,0.73351219]
[1772975706977,12.23510987,81.732,81.673,0.73351219]
[1772975707468,12.23510987,81.732,81.623,6.04992056]
[1772975707469,0.3697307,81.727,81.663,0.73351219]
[1772975708668,0.28432314,81.728,81.663,0.73351219]
[1772975708978,0.37210484,81.727,81.663,0.73351219]
[1772975709561,0.37210484,81.727,81.664,42.85854231]
[1772975709562,12.23600812,81.726,81.664,42.85854231]
[1772975709749,12.23600812,81.726,81.665,0.73351219]
[1772975709963,0.37442618,81.721,81.653,0.73351219]
[1772975710274,0.37442618,81.712,81.653,0.73351219]
[1772975711658,42.82707649,81.724,81.655,0.73351219]
[1772975711859,0.37902348,81.723,81.655,0.73351219]
[1772975712059,0.37902348,81.722,81.655,0.73351219]
[1772975712758,42.82707649,81.724,81.655,0.73351219]
[1772975713883,0.38349733,81.728,81.657,0.73351219]
[1772975715655,0.38785115,81.726,81.659,0.73351219]
[1772975715974,0.38785115,81.725,81.659,0.73351219]
[1772975717978,0.28432314,81.723,81.659,0.73351219]
[1772975718179,0.39212452,81.722,81.661,0.73351219]
[1772975719279,0.39421623,81.719,81.661,0.73351219]
[1772975720180,0.39629798,81.716,81.663,0.73351219]
[1772975721183,0.28432314,81.717,81.663,0.73351219]
[1772975721486,0.40035837,81.714,81.605,1.2254151]
[1772975721666,0.40035837,81.714,81.579,35.99091598]
[1772975721667,0.40035837,81.704,81.625,0.73351219]
[1772975722193,0.40035837,81.699,81.627,0.73351219]
[1772975722506,42.83808427,81.703,81.628,0.73351219]
[1772975722507,12.23945265,81.703,81.628,0.73351219]
[1772975722780,0.40235241,81.702,81.628,0.73351219]
[1772975722980,0.40235241,81.701,81.628,0.73351219]
[1772975724270,0.40432633,81.698,81.63,0.73351219]
[1772975724484,0.40627762,81.739,81.633,0.73351219]
[1772975724785,0.96179997,81.74,81.654,0.73351219]
[1772975724984,0.40627762,81.75,81.654,0.73351219]
[1772975724985,12.23406207,81.739,81.654,0.73351219]
[1772975725187,0.40627762,81.738,81.654,0.73351219]
[1772975725491,12.23406207,81.739,81.654,0.73351219]
[1772975725893,0.40820536,81.738,81.654,0.73351219]
[1772975726080,12.23331591,81.744,81.654,0.73351219]
[1772975726283,0.40820536,81.749,81.659,1.01783533]
[1772975726482,0.40820536,81.749,81.66,0.73351219]
[1772975726689,0.28432314,81.749,81.66,0.73351219]
[1772975726883,0.41011469,81.748,81.66,0.73351219]
[1772975727391,0.41198906,81.745,81.665,0.73351219]
[1772975729275,0.41198906,81.745,81.666,0.73351219]
[1772975729679,12.64572571,81.766,81.671,0.73351219]
[1772975729884,0.41570346,81.765,81.672,0.73351219]
[1772975730194,0.28432314,81.765,81.672,0.73351219]
[1772975730396,0.41570346,81.764,81.672,0.73351219]
[1772975731102,0.41753752,81.761,81.672,0.73351219]
[1772975731677,2.47215037,99.404,81.646,48.99196747]
[1772975731678,0.41933305,81.759,81.677,0.28432314]
[1772975731879,0.41933305,81.758,81.678,0.73351219]
[1772975733497,12.22947434,81.77,81.678,0.73351219]
[1772975733811,12.22947434,81.77,81.683,0.78540854]
[1772975733977,12.22947434,81.77,81.684,0.78540854]
[1772975734293,12.22947434,81.77,81.686,0.28432314]
[1772975734471,12.22947434,81.77,81.688,0.78540854]
[1772975734677,12.22947434,81.77,81.689,1.06973168]
[1772975734877,12.22947434,81.77,81.694,0.78540854]
[1772975735494,12.22628406,81.791,81.704,3.69383402]
[1772975735692,0.42800066,81.79,81.706,0.78540854]
[1772975735880,0.42800066,81.789,81.707,1.06973168]
[1772975736072,0.42800066,81.789,81.709,0.78540854]
[1772975736276,0.42800066,81.789,81.711,0.78540854]
[1772975736889,0.42967803,81.786,81.713,0.78540854]
[1772975737991,0.42967803,81.786,81.714,0.78540854]
[1772975738591,0.43297108,81.797,81.714,0.78540854]
[1772975738779,12.22554209,81.796,81.72,3.69383402]
[1772975738985,12.22554209,81.796,81.722,0.78540854]
[1772975739195,12.65851317,81.796,81.724,0.78540854]
[1772975739385,0.43457721,81.795,81.724,0.78540854]
[1772975740899,0.43617569,81.793,81.727,0.78540854]
[1772975741082,0.43617569,81.792,81.727,0.78540854]
[1772975741291,0.43617569,81.789,81.726,0.78540854]
[1772975742894,0.43931748,81.786,81.728,0.78540854]
[1772975744787,0.44238702,81.784,81.73,0.78540854]
[1772975747201,0.44538449,81.782,81.732,0.78540854]
[1772975747900,62.0,81.781,81.732,0.78540854]
[1772975748198,0.44685881,81.78,81.732,0.78540854]
[1772975750789,12.22822764,81.778,81.733,12.23496017]
[1772975751000,12.22822764,81.778,81.734,0.78540854]
[1772975751001,62.0,81.777,81.734,0.78540854]
[1772975751497,0.452623,81.776,81.734,0.78540854]
[1772975751801,62.0,81.777,81.734,0.78540854]
[1772975752589,62.45401094,81.777,81.734,0.78540854]
[1772975752788,62.0,81.777,81.736,0.78540854]
[1772975752989,12.2285267,81.776,81.736,0.78540854]
[1772975754107,12.2285267,81.776,81.738,0.78540854]
[1772975755403,62.0,81.777,81.738,0.78540854]
[1772975755705,12.2285267,81.776,81.738,0.78540854]
[1772975756099,62.0,81.777,81.738,0.78540854]
[1772975756301,62.0,81.777,81.74,0.78540854]
[1772975756892,12.22708588,81.786,81.74,0.78540854]
[1772975757285,0.45940061,81.785,81.74,0.78540854]
[1772975757804,12.22708588,81.786,81.74,0.78540854]
[1772975758499,12.22628406,81.791,81.742,0.78540854]
[1772975758706,12.68830886,81.791,81.742,0.78540854]
[1772975758890,0.4620248,81.79,81.742,0.78540854]
[1772975760109,62.0,81.792,81.744,0.78540854]
[1772975760407,0.46457493,81.807,81.744,0.78540854]
[1772975761500,12.22319885,81.812,81.745,0.78540854]
[1772975761912,2.94,81.98,81.747,0.78540854]
[1772975761913,0.46582847,81.864,81.747,0.78540854]
[1772975762099,0.46582847,81.864,81.757,1.06973168]
[1772975762411,12.49304542,81.87,81.759,0.78540854]
[1772975762412,0.46706203,81.859,81.759,0.78540854]
[1772975762598,0.46828348,81.852,81.759,0.78540854]
[1772975762800,0.46828348,81.85,81.759,0.78540854]
[1772975763611,0.46949066,81.847,81.762,0.78550932]
[1772975765616,0.47303304,81.845,81.763,103.95900344]
[1772975765808,0.47303304,81.84,81.764,0.80041021]
[1772975766004,0.47303304,81.839,81.764,0.80041021]
[1772975766507,0.47419116,81.822,81.763,12.23047099]
[1772975767410,0.47419116,81.822,81.757,12.23127869]
[1772975767715,0.28432314,81.827,81.758,0.80041021]
[1772975767716,0.4753396,81.819,81.758,0.80041021]
[1772975769508,103.8853106,81.821,81.753,1.26351678]
[1772975769509,0.47760343,81.812,81.753,1.26351678]
[1772975769709,0.47760343,81.809,81.753,1.26351678]
[1772975769916,0.47760343,81.804,81.753,1.26351678]
[1772975770805,0.47760343,81.804,81.754,12.2318174]
[1772975771007,0.47760343,81.804,81.755,0.80041021]
[1772975771223,0.47760343,81.804,81.753,1.26351678]
[1772975771713,0.47589129,81.801,81.753,1.26351678]
[1772975772499,0.47589129,81.801,81.754,0.80041021]
[1772975773724,0.47031411,81.798,81.756,0.80041021]
[1772975774247,0.47031411,81.798,81.753,1.26351678]
[1772975774426,0.47031411,81.798,81.754,12.2318174]
[1772975775021,0.47031411,81.798,81.755,0.80041021]
[1772975775807,0.46486514,81.795,81.755,0.80041021]
[1772975777508,0.46486514,81.795,81.757,0.80041021]
[1772975777923,0.45953107,81.792,81.759,0.80041021]
[1772975778238,12.2259851,81.793,81.759,0.80041021]
[1772975778542,53.72534692,81.794,81.759,0.80041021]
[1772975778831,12.22285331,81.814,81.759,0.80041021]
[1772975779926,30.55553638,81.819,81.759,0.80041021]
[1772975780134,30.55553638,81.819,81.758,103.96536117]
[1772975780135,30.55553638,81.819,81.761,0.80041021]
[1772975780433,0.45177665,81.818,81.761,0.80041021]
[1772975781833,12.22150251,81.823,81.763,0.80041021]
[1772975782027,12.22150251,81.823,81.765,0.80041021]
[1772975782437,4.82477569,81.818,81.754,12.2318174]
[1772975782615,0.44675823,81.813,81.755,0.80041021]
[1772975783642,0.44429757,81.818,81.755,0.80041021]
[1772975784140,3.69383402,81.836,81.753,1.26351678]
[1772975784141,0.44429757,81.835,81.76,0.80041021]
[1772975784428,42.7663734,81.84,81.762,0.80041021]
[1772975784631,12.21896383,81.84,81.763,0.28432314]
[1772975784928,12.21896383,81.84,81.765,0.94257178]
[1772975785125,12.21896383,81.84,81.765,0.80041021]
[1772975786634,12.21896383,81.84,81.77,0.80041021]
[1772975786937,12.21896383,81.84,81.772,1.08473335]
[1772975787131,12.21896383,81.84,81.773,1.08473335]
[1772975787337,12.21896383,81.84,81.774,0.28432314]
[1772975787535,30.54397465,81.85,81.775,0.80041021]
[1772975787743,0.43468309,81.847,81.775,0.80041021]
[1772975788846,0.43235718,81.845,81.78,0.80041021]
[1772975791843,0.42550472,81.843,81.782,0.80041021]
[1772975792342,12.2177833,81.848,81.783,0.80041021]
[1772975792539,0.4232707,81.847,81.784,0.80041021]
[1772975793628,12.6369473,81.846,81.786,0.80007107]
[1772975794137,0.41887923,81.845,81.786,0.80007107]
[1772975794838,12.21806807,81.846,81.786,0.80007107]
[1772975795232,0.41672068,81.86,81.789,0.80007107]
[1772975795426,0.41672068,81.86,81.79,1.08439421]
[1772975795635,0.41458664,81.858,81.793,0.94223264]
[1772975795836,0.41458664,81.857,81.794,0.80007107]
[1772975798724,0.40832574,81.855,81.796,0.80007107]
[1772975800251,0.40629166,81.853,81.798,0.80007107]
[1772975801749,12.21687394,81.854,81.798,0.80007107]
[1772975801950,0.40228809,81.853,81.798,0.80007107]
[1772975802326,0.40228809,81.851,81.8,0.80007107]
[1772975803025,12.21717245,81.852,81.8,0.80007107]
[1772975804644,0.39645553,81.852,81.802,0.80007107]
[1772975805641,0.3945524,81.864,81.803,0.80007107]
[1772975805846,0.3945524,81.874,81.804,0.80007107]
[1772975806844,0.39267254,81.872,81.806,0.80007107]
[1772975808647,0.39267254,81.872,81.807,0.80007107]
[1772975808842,0.38897669,81.87,81.81,0.94223264]
[1772975809049,0.38897669,81.87,81.811,0.80007107]
[1772975809238,0.38897669,81.87,81.811,0.94223264]
[1772975811351,0.38897669,81.87,81.809,103.90054883]
[1772975811352,0.38535424,81.868,81.813,0.80007107]
[1772975813442,0.38008956,81.866,81.815,0.80007107]
[1772975814854,0.37837547,81.878,81.818,0.80007107]
[1772975815737,0.2,81.88,81.821,0.80007107]
[1772975815931,0.2,81.88,81.823,0.80007107]
[1772975816238,0.2,81.88,81.824,0.80007107]
[1772975816557,1.08944679,81.892,81.826,0.80007107]
[1772975816739,1.08944679,81.892,81.828,0.80007107]
[1772975816939,1.08944679,81.892,81.83,0.80007107]
[1772975817136,1.08944679,81.892,81.832,0.80007107]
[1772975817447,0.71276804,81.892,81.835,0.80007107]
[1772975817743,0.71276804,81.892,81.841,0.80007107]
[1772975817944,0.37333478,81.909,81.844,0.80007107]
[1772975818161,55.35333478,81.916,81.845,0.94223264]
[1772975818339,0.37333478,81.915,81.845,0.94223264]
[1772975819454,0.37333478,81.915,81.847,0.94223264]
[1772975819644,0.37333478,81.915,81.85,0.80007107]
[1772975819844,0.37333478,81.915,81.851,0.80007107]
[1772975820048,54.98,81.916,81.853,0.80007107]
[1772975820240,54.98,81.916,81.855,0.80007107]
[1772975820436,54.98,81.916,81.857,0.80007107]
[1772975820737,0.2,81.93,81.86,0.80007107]
[1772975820937,0.36847938,81.937,81.862,0.80007107]
[1772975821255,0.36847938,81.937,81.852,3.69383402]
[1772975821256,0.36847938,81.935,81.865,0.80007107]
[1772975821644,0.366892,81.934,81.865,0.80007107]
[1772975821844,0.366892,81.931,81.867,0.80007107]
[1772975824064,0.36074218,81.928,81.869,0.75352718]
[1772975824362,0.36074218,81.928,81.841,3.69383402]
[1772975824363,0.35924641,81.921,81.863,12.21553082]
[1772975824661,0.35924641,81.919,81.863,12.21553082]
[1772975824861,0.35924641,81.919,81.864,0.75352718]
[1772975825053,0.35924641,81.916,81.864,0.75352718]
[1772975826558,0.35630119,81.913,81.866,0.75352718]
[1772975826747,0.35630119,81.91,81.866,0.75352718]
[1772975828765,0.3534217,81.908,81.868,0.75352718]
[1772975830351,0.3534217,81.908,81.867,12.21493397]
[1772975830749,0.35062015,81.906,81.865,0.75352718]
[1772975832064,0.34863486,81.905,81.862,12.21568004]
[1772975833256,0.34667406,81.902,81.862,12.21568004]
[1772975833568,0.34667406,81.902,81.863,0.75352718]
[1772975835254,0.34282049,81.899,81.865,0.75352718]
[1772975837470,0.33904823,81.897,81.866,12.21508318]
[1772975837970,0.33719155,81.895,81.866,12.21508318]
[1772975838555,0.3353645,81.893,81.866,12.21508318]
[1772975839756,0.3353645,81.893,81.858,12.21627696]
[1772975839953,0.3353645,81.893,81.859,0.75352718]
[1772975840576,0.33176202,81.891,81.861,0.75352718]
[1772975841888,0.32999421,81.889,81.849,0.75352718]
[1772975842062,0.32999421,81.888,81.849,12.97114743]
[1772975842258,0.32999421,81.888,81.85,0.75352718]
[1772975842657,0.32824722,81.886,81.852,0.75352718]
[1772975844765,0.32482865,81.884,81.842,30.54660651]
[1772975844973,0.28432314,81.884,81.844,0.75352718]
[1772975845176,0.32482865,81.883,81.844,0.75352718]
[1772975847972,0.31983105,81.88,81.846,0.75352718]
[1772975849475,0.31659347,81.878,81.832,0.75352718]
[1772975850196,0.31659347,81.876,81.834,0.75352718]
[1772975852887,0.31033864,81.874,81.836,0.75598696]
[1772975854791,12.21374045,81.875,81.836,0.75598696]
[1772975855181,0.30730831,81.879,81.838,0.75598696]
[1772975855381,0.305815,81.877,81.838,0.75598696]
[1772975858407,0.30147174,81.875,81.84,0.75598696]
[1772975863198,62.0,81.897,81.842,0.75598696]
[1772975863404,48.79520132,81.976,81.842,0.75598696]
[1772975863405,12.20807442,81.913,81.842,0.75598696]
[1772975863600,42.72826047,81.913,81.842,0.75598696]
[1772975864195,0.28432314,81.912,81.842,0.75598696]
[1772975864694,42.72826047,81.913,81.842,0.75598696]
[1772975864899,0.28432314,81.912,81.842,0.75598696]
[1772975867711,0.28432314,81.91,81.845,0.77604466]
[1772975867906,42.72930375,81.911,81.846,1.0603678]
[1772975868107,42.72930375,81.911,81.848,0.77604466]
[1772975868293,0.28432314,81.91,81.848,0.77604466]
[1772975868494,0.14216157,81.91,81.848,0.77604466]
[1772975869707,0.28432314,81.91,81.851,0.77604466]
[1772975869912,30.52093125,81.911,81.851,0.77604466]
[1772975870096,0.28432314,81.91,81.851,0.77604466]
[1772975870609,0.28432314,81.91,81.853,0.77604466]
[1772975874012,12.20881965,81.908,81.855,0.77604466]
[1772975875316,12.20881965,81.908,81.856,0.77604466]
[1772975876013,12.20732928,81.918,81.858,0.77604466]
[1772975876321,12.20732928,81.918,81.859,1.0603678]
[1772975876617,12.20732928,81.918,81.862,0.77604466]
[1772975877814,42.71991602,81.929,81.862,0.77604466]
[1772975878204,30.51422573,81.929,81.865,0.77604466]
[1772975879519,0.28432314,81.928,81.865,0.77604466]
[1772975880707,0.28432314,81.926,81.867,0.77604466]
[1772975881915,0.28432314,81.926,81.845,61.09099804]
[1772975881916,4.82477569,81.921,81.854,0.77604466]
[1772975882214,0.28432314,81.917,81.855,0.77604466]
[1772975882818,0.28432314,81.912,81.857,0.77604466]
[1772975884908,0.28432314,81.91,81.859,0.77604466]
[1772975885219,62.0,81.909,81.859,0.77604466]
[1772975887218,0.28432314,81.907,81.86,12.21597849]
[1772975887425,0.28432314,81.907,81.861,0.77604466]
[1772975889104,0.28432314,81.905,81.861,0.77604466]
[1772975889305,0.28432314,81.903,81.863,0.77604466]
[1772975891307,42.73399916,81.902,81.856,0.77604466]
[1772975891513,0.28432314,81.901,81.856,0.77604466]
[1772975891926,62.0,81.9,81.856,0.77604466]